fUSD/lending_fUSD_20260304
["ID","MTS","AMOUNT","RATE_DAILY","PERIOD"]
[407682026,1772665897977,-200225.85463678,0.0005,120]
[407682027,1772665897986,-10611.34,0.0005,120]
[407682028,1772665897995,-1000.0,0.0005,120]
[407682029,1772665898003,-3232.0,0.0005,120]
[407682030,1772665898012,-640000.0,0.0005,120]
[407682031,1772665898022,-920000.0,0.0005,120]
[407682032,1772665898030,-440000.0,0.0005,120]
[407682033,1772665898039,-13190.7141715,0.0005,120]
[407682034,1772665898048,-2647.74352852,0.0005,60]
[407682035,1772665898057,-150.0,0.0005,120]
[407682036,1772665898066,-1000000.0,0.0005,120]
[407682037,1772665898075,-1000000.0,0.0005,120]
[407682038,1772665898085,-1000000.0,0.0005,120]
[407682039,1772665898094,-1000000.0,0.0005,120]
[407682040,1772665898102,-500000.0,0.0005,120]
[407682041,1772665898112,-14759.86692697,0.0005,120]
[407682042,1772665898123,-1000000.0,0.0005,120]
[407682043,1772665898133,-500.0,0.0005,120]
[407682044,1772665898143,-454.69723028,0.0005,120]
[407682045,1772665898152,-2010.15,0.0005,120]
[407682046,1772665898163,-2000.0,0.0005,120]
[407682047,1772665898172,-540.273097,0.0005,30]
[407682048,1772665898182,-680903.20985107,0.0005,120]
[407682049,1772665898192,-10040.0,0.0005,120]
[407682050,1772665898202,-532.8657185,0.0005,120]
[407682051,1772665898211,-500100.0,0.0005,120]
[407682052,1772665898221,-3154.20731013,0.0005,120]
[407682053,1772665898231,-1760.02,0.0005,120]
[407682054,1772665898241,-16801.89267488,0.0005,120]
[407682055,1772665898250,-22985.37999687,0.0005,120]
[407682056,1772665898260,-600.0,0.0005,120]
[407682057,1772665898270,-600.0,0.0005,120]
[407682058,1772665898281,-600.0,0.0005,120]
[407682059,1772665898292,-600.0,0.0005,120]
[407682060,1772665898301,-200.0,0.0005,60]
[407682061,1772665898311,-6309.38084212,0.0005,30]
[407682062,1772665898320,-10057.30337468,0.0005,120]
[407682063,1772665898329,-2000000.0,0.0005,71]
[407682064,1772665898339,-2000000.0,0.0005,55]
[407682065,1772665898348,-1000.0,0.0005,2]
[407682066,1772665898358,-397.27,0.0005,120]
[407682067,1772665898367,-26000.0,0.0005,120]
[407682068,1772665898377,-1000.0,0.0005,120]
[407682069,1772665898386,-164.16749462,0.0005,120]
[407682070,1772665898396,-1040.30044358,0.0005,30]
[407682071,1772665898405,-19859.91209041,0.0005,30]
[407682072,1772665898415,-151.0,0.0005,2]
[407682073,1772665898424,-151.0,0.0005,2]
[407682074,1772665898433,-151.0,0.0005,2]
[407682075,1772665898444,-151.0,0.0005,2]
[407682076,1772665898454,-151.0,0.0005,2]
[407682077,1772665898465,-151.0,0.0005,2]
[407682078,1772665898475,-151.0,0.0005,2]
[407682079,1772665898485,-151.0,0.0005,2]
[407682080,1772665898495,-151.0,0.0005,2]
[407682081,1772665898505,-291.056907,0.0005,2]
[407682082,1772665898516,-151.0,0.0005,120]
[407682083,1772665898527,-51406.93801809,0.0005,2]
[407682084,1772665898538,-201.42874694,0.0005,120]
[407682085,1772665898548,-1259.113712,0.0005,120]
[407682086,1772665898559,-1259.113712,0.0005,120]
[407682087,1772665898570,-1259.113712,0.0005,120]
[407682088,1772665898581,-1259.113712,0.0005,120]
[407682089,1772665898591,-1259.113712,0.0005,120]
[407682090,1772665898601,-1259.113712,0.0005,120]
[407682091,1772665898611,-1259.113712,0.0005,120]
[407682092,1772665898620,-1259.113712,0.0005,120]
[407682093,1772665898631,-1259.113712,0.0005,120]
[407682094,1772665898641,-1259.113712,0.0005,120]
[407682095,1772665898651,-1259.113712,0.0005,120]
[407682096,1772665898660,-1259.113712,0.0005,120]
[407682097,1772665898670,-1259.113712,0.0005,120]
[407682098,1772665898681,-1259.113712,0.0005,120]
[407682099,1772665898691,-1259.113712,0.0005,120]
[407682100,1772665898828,-1259.113705,0.0005,120]
[407682101,1772665898839,-151.0,0.0005,30]
[407682102,1772665898849,-1146.07911441,0.0005,2]
[407682103,1772665898860,-812.31926716,0.0005,7]
[407682104,1772665898869,-151.0,0.0005,120]
[407682105,1772665898879,-151.0,0.0005,120]
[407682106,1772665898889,-151.0,0.0005,120]
[407682107,1772665898899,-151.0,0.0005,120]
[407682108,1772665898908,-151.0,0.0005,120]
[407682109,1772665898918,-215.506811,0.0005,120]
[407682110,1772665898927,-151.0,0.0005,120]
[407682111,1772665898937,-200.0,0.0005,15]
[407682112,1772665898946,-509.75229,0.0005,120]
[407682113,1772665898956,-509.75229,0.0005,120]
[407682114,1772665898967,-509.75229,0.0005,120]
[407682115,1772665898977,-509.75229,0.0005,120]
[407682116,1772665898987,-197.16841502,0.0005,30]
[407682117,1772665898997,-1123.556729,0.0005,120]
[407682118,1772665899007,-1123.556729,0.0005,120]
[407682119,1772665899016,-1123.556729,0.0005,120]
[407682120,1772665899026,-1123.556721,0.0005,120]
[407682121,1772665899035,-2129.12173615,0.0005,30]
[407682122,1772665899045,-3643.487575,0.0005,28]
[407682123,1772665899055,-3643.487575,0.0005,28]
[407682124,1772665899064,-3643.487575,0.0005,28]
[407682125,1772665899074,-3643.48758,0.0005,28]
[407682126,1772665899083,-3084.0,0.0005,30]
[407682127,1772665899094,-210.0,0.0005,120]
[407682128,1772665899104,-210.0,0.0005,120]
[407682129,1772665899114,-210.0,0.0005,120]
[407682130,1772665899128,-963.627147,0.0005,120]
[407682131,1772665899137,-300.0,0.0005,7]
[407682132,1772665899147,-300.0,0.0005,7]
[407682133,1772665899156,-300.0,0.0005,7]
[407682134,1772665899167,-300.0,0.0005,7]
[407682135,1772665899176,-300.0,0.0005,7]
[407682136,1772665899187,-300.0,0.0005,7]
[407682137,1772665899197,-300.0,0.0005,7]
[407682138,1772665899207,-300.0,0.0005,7]
[407682139,1772665899216,-300.0,0.0005,7]
[407682140,1772665899225,-300.0,0.0005,7]
[407682141,1772665899235,-300.0,0.0005,7]
[407682142,1772665899245,-300.0,0.0005,7]
[407682143,1772665899255,-300.0,0.0005,7]
[407682144,1772665899264,-299.36,0.0005,7]
[407682145,1772665899274,-315.0,0.0005,14]
[407682146,1772665899284,-1163.972162,0.0005,14]
[407682147,1772665899293,-1163.972162,0.0005,14]
[407682148,1772665899303,-1163.972162,0.0005,14]
[407682149,1772665899312,-1163.972167,0.0005,14]
[407682150,1772665899322,-151.0,0.0005,120]
[407682151,1772665899332,-151.0,0.0005,120]
[407682152,1772665899341,-200.92436202,0.0005,7]
[407682153,1772665899351,-151.0,0.0005,120]
[407682154,1772665899359,-151.413511,0.0005,120]
[407682155,1772665899368,-151.0,0.0005,120]
[407682156,1772665899378,-151.413511,0.0005,120]
[407682157,1772665899388,-151.0,0.0005,120]
[407682158,1772665899399,-151.0,0.0005,120]
[407682159,1772665899408,-151.413511,0.0005,120]
[407682160,1772665899421,-255.057634,0.0005,120]
[407682161,1772665899431,-151.0,0.0005,120]
[407682162,1772665899441,-151.413519,0.0005,120]
[407682163,1772665899450,-255.057634,0.0005,120]
[407682164,1772665899461,-255.057634,0.0005,120]
[407682165,1772665899470,-255.057643,0.0005,120]
[407682166,1772665899480,-153.19702547,0.00050017,120]
[407682167,1772665899489,-500.0,0.00050136,120]
[407682168,1772665899499,-500.0,0.00050136,120]
[407682169,1772665899509,-500.0,0.00050136,120]
[407682170,1772665899518,-500.0,0.00050136,120]
[407682171,1772665899529,-20000.0,0.0005025,120]
[407682172,1772665899538,-152.0,0.00050259,10]
[407682173,1772665899548,-2495.14461277,0.00050483,120]
[407682174,1772665899557,-1000000.0,0.000505,35]
[407682175,1772665899567,-1000000.0,0.000505,30]
[407682176,1772665899576,-1000000.0,0.000505,32]
[407682177,1772665899585,-1000000.0,0.000505,120]
[407682178,1772665899594,-1000000.0,0.000505,120]
[407682179,1772665899603,-1000000.0,0.000505,37]
[407682180,1772665899613,-1000000.0,0.000505,40]
[407682181,1772665899622,-1000000.0,0.000505,40]
[407682182,1772665899633,-1000000.0,0.000505,40]
[407682183,1772665899643,-1000000.0,0.000505,47]
[407682184,1772665899652,-1000000.0,0.000505,47]
[407682185,1772665899663,-1000000.0,0.000505,120]
[407682186,1772665899673,-1000000.0,0.000505,120]
[407682187,1772665899683,-1000000.0,0.000505,120]
[407682188,1772665899692,-1000000.0,0.000505,120]
[407682189,1772665899701,-1000000.0,0.000505,120]
[407682190,1772665899711,-1000000.0,0.000505,120]
[407682191,1772665899720,-1000000.0,0.000505,120]
[407682192,1772665899729,-1000000.0,0.000505,120]
[407682193,1772665899739,-1000000.0,0.000505,120]
[407682194,1772665899747,-1000000.0,0.000505,120]
[407682195,1772665899756,-1000000.0,0.000505,120]
[407682196,1772665899765,-1000000.0,0.000505,120]
[407682197,1772665899774,-1000000.0,0.000505,35]
[407682198,1772665899783,-1000000.0,0.000505,37]
[407682199,1772665899792,-1000000.0,0.000505,33]
[407682200,1772665899801,-1000000.0,0.000505,39]
[407682201,1772665899810,-1000000.0,0.000505,32]
[407682202,1772665899819,-852678.99,0.000505,120]
[407682203,1772665899827,-1000000.0,0.000505,36]
[407682204,1772665899836,-500000.0,0.000505,120]
[407682205,1772665899845,-1040.30044358,0.000505,30]
[407682206,1772665899854,-19859.91209041,0.000505,30]
[407682207,1772665899864,-19859.91209041,0.000505,30]
[407682208,1772665899873,-200.0,0.000505,15]
[407682209,1772665899883,-2129.12173615,0.000505,30]
[407682210,1772665899891,-150.0,0.00050503,120]
[407682211,1772665899900,-1100.0,0.00050547,60]
[407682212,1772665899910,-700.0,0.00050547,60]
[407682213,1772665899919,-1174.52,0.00050637,120]
[407682214,1772665899927,-900.0,0.00050821,60]
[407682215,1772665899937,-3319.65,0.0005088,120]
[407682216,1772665899947,-16451.78754502,0.000509,120]
[407682217,1772665899956,-150.4,0.000509,120]
[407682218,1772665899965,-500.0,0.00050958,120]
[407682219,1772665899974,-500.0,0.00050958,120]
[407682220,1772665899983,-500.0,0.00050958,120]
[407682221,1772665899993,-50000.0,0.00051,75]
[407682222,1772665900002,-10000.0,0.00051,30]
[407682223,1772665900012,-1000000.0,0.00051,50]
[407682224,1772665900021,-1000000.0,0.00051,52]
[407682225,1772665900031,-1000000.0,0.00051,52]
[407682226,1772665900040,-1000000.0,0.00051,52]
[407682227,1772665900049,-1000000.0,0.00051,52]
[407682228,1772665900058,-1000000.0,0.00051,70]
[407682229,1772665900068,-1742.71912723,0.00051,120]
[407682230,1772665900077,-1000000.0,0.00051,81]
[407682231,1772665900087,-1841465.0,0.00051,50]
[407682232,1772665900096,-2000000.0,0.00051,70]
[407682233,1772665900105,-6455.450458,0.00051,60]
[407682234,1772665900115,-50000.0,0.00051,120]
[407682235,1772665900128,-3011.0,0.00051,120]
[407682236,1772665900138,-2000000.0,0.00051,81]
[407682237,1772665900148,-1079535.62178318,0.00051,70]
[407682238,1772665900433,-1189.33499715,0.00051,70]
[407682239,1772665900446,-1124.45115733,0.00051,70]
[407682240,1772665900457,-765.56801084,0.00051,70]
[407682241,1772665900469,-14540.2561212,0.00051,70]
[407682242,1772665900485,-500.0,0.00049315,120]
[407682243,1772665900495,-6825.71350668,0.00051,70]
[407682244,1772665900507,-1220.00000024,0.00051,70]
[407682245,1772665900519,-426.22,0.00051,70]
[407682246,1772665900531,-1611.57283207,0.00051,70]
[407682247,1772665900542,-1104.89183922,0.00051,70]
[407682248,1772665900558,-500.0,0.00049315,120]
[407682249,1772665900568,-333.64980838,0.00051,70]
[407682250,1772665950063,736.62421898,0.00012,2]
[407682251,1772666071877,-151.559,0.000179,2]
[407682252,1772666486559,4500.5,0.00015471,2]
[407682254,1772666992230,250.0,0.00015,2]
[407682257,1772667032259,-300.0,0.00017,2]
[407682259,1772667032270,-294.0,0.00017,2]
[407682261,1772667032281,-350.0,0.00019,2]
[407682262,1772667032291,-400.0,0.00021,2]
[407682263,1772667032301,-450.0,0.00023,2]
[407682264,1772667032312,-500.0,0.00025,2]
[407682265,1772667032321,-160.0,0.00028399,2]
[407682266,1772667032331,-195.0,0.00028664,120]
[407682267,1772667032341,-1200.0,0.00028874,2]
[407682268,1772667032351,-300.0,0.00028874,2]
[407682269,1772667032359,-2308.91342666,0.00028875,2]
[407682270,1772667032391,-5128.5894436,0.00028875,2]
[407682271,1772667032401,-300.0,0.00028943,2]
[407682272,1772667032410,-300.0,0.00028943,2]
[407682273,1772667032420,-195.0,0.00028944,120]
[407682274,1772667032430,-195.0,0.00028944,120]
[407682275,1772667032441,-195.0,0.00028944,120]
[407682276,1772667032458,-160.0,0.00029244,2]
[407682277,1772667032469,-1200.0,0.00029435,2]
[407682278,1772667032480,-479.7981662,0.00029889,120]
[407682279,1772667032492,-150.0,0.000305,14]
[407682280,1772667032503,-420.0,0.00031156,3]
[407682281,1772667032512,-420.0,0.00031228,3]
[407682282,1772667032524,-300.0,0.00031228,3]
[407682284,1772667032536,-1680.0,0.0003129,3]
[407682286,1772667032552,-195.0,0.00031297,120]
[407682287,1772667032566,-5000.0,0.00031386,120]
[407682288,1772667032579,-250.0,0.00031386,2]
[407682289,1772667032596,-421.0,0.00031743,3]
[407682290,1772667032607,-201.79,0.00032,14]
[407682291,1772667032629,-600.0,0.00032054,2]
[407682292,1772667032638,-1278.0,0.00032055,2]
[407682293,1772667032648,-1041.0,0.00032055,2]
[407682294,1772667032659,-3501.0,0.00032055,2]
[407682295,1772667032670,-202.21542085,0.00032329,2]
[407682296,1772667032679,-587.0,0.00033618,3]
[407682297,1772667032689,-180.0,0.00033693,3]
[407682298,1772667032698,-3099.999999,0.000337,30]
[407682299,1772667032709,-1539.34,0.00033773,2]
[407682300,1772667032718,-720.0,0.00033908,3]
[407682302,1772667032729,-200.0,0.00034848,2]
[407682304,1772667032740,-1278.0,0.00035055,2]
[407682306,1772667032751,-1041.0,0.00035055,2]
[407682307,1772667032761,-3501.0,0.00035055,2]
[407682309,1772667032770,-150.95153283,0.000352,7]
[407682311,1772667032780,-303.63831065,0.00035616,2]
[407682313,1772667032791,-300.0,0.00035687,2]
[407682315,1772667032801,-1000.89,0.00035757,2]
[407682316,1772667032814,-339.0,0.00036275,3]
[407682318,1772667032825,-1539.34,0.00037197,2]
[407682320,1772667032834,-482.54078728,0.000372,120]
[407682322,1772667032845,-482.54078724,0.000372,120]
[407682323,1772667032854,-168.16,0.000374,30]
[407682324,1772667032865,-742.12,0.00037612,120]
[407682325,1772667032875,-28518.4929,0.00037754,2]
[407682326,1772667032884,-15956.34749776,0.00037854,2]
[407682327,1772667032907,-15135.19232137,0.00037854,2]
[407682328,1772667032920,-21759.76571727,0.00037854,2]
[407682329,1772667032932,-6409.34,0.00037864,2]
[407682330,1772667032942,-12630.32212335,0.00037955,2]
[407682331,1772667032953,-1278.0,0.00038055,2]
[407682332,1772667032964,-3501.0,0.00038055,2]
[407682333,1772667032974,-2036.346,0.00038216,51]
[407682334,1772667032985,-150.465,0.00038216,51]
[407682335,1772667032995,-1900.0,0.0003898,30]
[407682336,1772667033004,-12630.32212333,0.00039393,2]
[407682337,1772667033014,-180.455,0.0003959,60]
[407682338,1772667033023,-482.54078724,0.00040119,120]
[407682339,1772667033036,-180.455,0.00040138,60]
[407682340,1772667033045,-1539.34,0.00040622,2]
[407682341,1772667033054,-180.455,0.00040685,60]
[407682342,1772667033063,-12630.32212333,0.00040832,15]
[407682343,1772667033072,-1278.0,0.00041055,2]
[407682344,1772667033082,-3501.0,0.00041055,2]
[407682345,1772667033091,-389.18270823,0.00041075,50]
[407682346,1772667033101,-800.0,0.00041096,14]
[407682347,1772667033111,-800.0,0.00041096,14]
[407682348,1772667033121,-800.0,0.00041096,14]
[407682349,1772667033130,-800.0,0.00041096,14]
[407682350,1772667033139,-800.0,0.00041096,14]
[407682351,1772667033149,-800.0,0.00041096,14]
[407682352,1772667033158,-800.0,0.00041096,14]
[407682353,1772667033168,-800.0,0.00041096,14]
[407682354,1772667033178,-30000.0,0.00041096,90]
[407682355,1772667033187,-2000.0,0.0004117,120]
[407682356,1772667033197,-156.67,0.00041362,91]
[407682357,1772667033206,-247.93,0.0004138,2]
[407682358,1772667033215,-151.29640567,0.000414,90]
[407682359,1772667033225,-153.34292707,0.000414,90]
[407682360,1772667033235,-152.72535669,0.000414,90]
[407682361,1772667033244,-2500.0,0.00041402,2]
[407682362,1772667033253,-286.18005047,0.00041402,120]
[407682363,1772667033264,-262.87451345,0.00041492,7]
[407682364,1772667033273,-151.0,0.00041499,14]
[407682365,1772667033283,-193.35595084,0.00041501,31]
[407682366,1772667033292,-964.39334972,0.00041501,31]
[407682367,1772667033301,-628.69388461,0.00041501,31]
[407682368,1772667033310,-305.69481559,0.00041501,31]
[407682369,1772667033320,-954.74941622,0.00041501,31]
[407682370,1772667033330,-954.74941622,0.00041501,31]
[407682371,1772667033339,-954.74941622,0.00041501,31]
[407682372,1772667033348,-954.74941622,0.00041501,31]
[407682373,1772667033358,-954.74941622,0.00041501,31]
[407682374,1772667033366,-954.74941622,0.00041501,31]
[407682375,1772667033376,-187.39471406,0.00041501,31]
[407682376,1772667033388,-767.35470216,0.00041501,31]
[407682377,1772667033398,-954.74941622,0.00041501,31]
[407682378,1772667033406,-954.74941622,0.00041501,31]
[407682379,1772667033416,-954.74941622,0.00041501,31]
[407682380,1772667033429,-954.74941622,0.00041501,31]
[407682381,1772667033440,-954.74941622,0.00041501,31]
[407682382,1772667033453,-954.74941622,0.00041501,31]
[407682383,1772667033462,-954.74941622,0.00041501,31]
[407682384,1772667033471,-954.74941622,0.00041501,31]
[407682385,1772667033481,-954.74941622,0.00041501,31]
[407682386,1772667033491,-954.74941622,0.00041501,31]
[407682387,1772667033500,-954.74941622,0.00041501,31]
[407682388,1772667033509,-954.74941622,0.00041501,31]
[407682389,1772667033520,-954.74941622,0.00041501,31]
[407682390,1772667033530,-954.74941622,0.00041501,31]
[407682391,1772667033540,-954.74941622,0.00041501,31]
[407682392,1772667033550,-954.74941622,0.00041501,31]
[407682393,1772667033559,-954.74941622,0.00041501,31]
[407682394,1772667033568,-954.74941622,0.00041501,31]
[407682395,1772667033578,-954.74941622,0.00041501,31]
[407682396,1772667033588,-954.74941622,0.00041501,31]
[407682397,1772667033597,-954.74941622,0.00041501,31]
[407682398,1772667033606,-954.74941622,0.00041501,31]
[407682399,1772667033615,-954.74941622,0.00041501,31]
[407682400,1772667033625,-954.74941622,0.00041501,31]
[407682401,1772667033634,-954.74941622,0.00041501,31]
[407682402,1772667033644,-954.74941622,0.00041501,31]
[407682403,1772667033653,-954.74941622,0.00041501,31]
[407682404,1772667033663,-954.74941622,0.00041501,31]
[407682405,1772667033673,-954.74941622,0.00041501,31]
[407682406,1772667033683,-954.74941622,0.00041501,31]
[407682407,1772667033692,-954.74941622,0.00041501,31]
[407682408,1772667033702,-954.74941622,0.00041501,31]
[407682409,1772667033712,-954.74941622,0.00041501,31]
[407682410,1772667033721,-954.74941622,0.00041501,31]
[407682411,1772667033731,-954.74941622,0.00041501,31]
[407682412,1772667033740,-954.74941622,0.00041501,31]
[407682413,1772667033750,-954.74941622,0.00041501,31]
[407682414,1772667033760,-954.74941622,0.00041501,31]
[407682415,1772667033769,-244.24536282,0.00041501,31]
[407682416,1772667033779,-943.10613065,0.00041501,31]
[407682417,1772667033788,-943.10613065,0.00041501,31]
[407682418,1772667033798,-943.10613065,0.00041501,31]
[407682419,1772667034065,-943.10613065,0.00041501,31]
[407682420,1772667034076,-943.10613065,0.00041501,31]
[407682421,1772667034088,-943.10613065,0.00041501,31]
[407682422,1772667034098,-943.10613065,0.00041501,31]
[407682423,1772667034107,-234.73299366,0.00041501,31]
[407682424,1772667034126,-353.8945,0.00041501,31]
[407682425,1772667034137,-354.47863699,0.00041501,31]
[407682426,1772667034146,-943.10613065,0.00041501,31]
[407682427,1772667034160,-943.10613065,0.00041501,31]
[407682428,1772667034169,-658.77475074,0.00041501,31]
[407682432,1772667038317,-284.33137991,0.00041501,31]
[407682433,1772667038327,-943.10613065,0.00041501,31]
[407682435,1772667038336,-943.10613065,0.00041501,31]
[407682436,1772667038345,-943.10613065,0.00041501,31]
[407682437,1772667038354,-943.10613065,0.00041501,31]
[407682438,1772667038363,-943.10613065,0.00041501,31]
[407682439,1772667038373,-903.85651784,0.00041501,31]
[407682440,1772667038384,-39.24961281,0.00041501,31]
[407682441,1772667038395,-943.10613065,0.00041501,31]
[407682442,1772667038407,-943.10613065,0.00041501,31]
[407682443,1772667038416,-943.10613065,0.00041501,31]
[407682444,1772667038425,-943.10613065,0.00041501,31]
[407682445,1772667038435,-943.10613065,0.00041501,31]
[407682446,1772667038444,-943.10613065,0.00041501,31]
[407682447,1772667038455,-500.0,0.00041501,31]
[407682448,1772667038465,-500.0,0.00041501,31]
[407682449,1772667038475,-171.98207922,0.00041501,31]
[407682450,1772667038486,-500.0,0.00041501,31]
[407682451,1772667038497,-500.0,0.00041501,31]
[407682452,1772667038507,-500.0,0.00041501,31]
[407682453,1772667038517,-200.0,0.00041502,120]
[407682454,1772667038527,-6119.0,0.00041502,7]
[407682455,1772667038536,-34140.87752407,0.00041502,2]
[407682456,1772667038547,-8355.461751,0.00041502,2]
[407682457,1772667038559,-36008.590824,0.00041502,2]
[407682485,1772667040832,-644.20590704,0.00041502,2]
[407682486,1772667040852,-379.57478064,0.00041502,2]
[407682495,1772667043512,-3162.305,0.00032055,2]
[407682496,1772667043523,-204.06,0.00041492,10]
[407682497,1772667043533,-1633.70924418,0.00041502,2]
[407682498,1772667043544,-900.05641542,0.00041502,2]
[407682499,1772667043602,-1090909.9170428,0.00041502,2]
[407682500,1772667043643,-766.49552142,0.00041502,2]
[407682501,1772667043659,-722.8955016,0.00041502,2]
[407682506,1772667046446,-308.99200929,0.00041502,2]
[407682512,1772667046842,-19760.0000004,0.00041502,2]
[407682513,1772667046889,-280822.83645339,0.00041502,2]
[407682521,1772667241386,1338.8,0.000118,2]
[407682522,1772667280895,4000.0,0.00015471,2]
[407682528,1772668231496,-200.57659525,0.00029551,102]
[407682529,1772668231506,-448.0,0.00029651,2]
[407682530,1772668231516,-250.0,0.00029825,2]
[407682531,1772668231527,-195.0,0.00029825,120]
[407682532,1772668231536,-508.55617254,0.00029899,2]
[407682533,1772668231546,-387.48798187,0.00029968,2]
[407682534,1772668231556,-195.0,0.00029968,120]
[407682535,1772668231566,-195.0,0.00029968,120]
[407682536,1772668231576,-1200.0,0.00029999,2]
[407682537,1772668231585,-177.0,0.0003,120]
[407682538,1772668231595,-275.0,0.00030032,2]
[407682539,1772668231604,-400.0,0.00030032,2]
[407682540,1772668231614,-400.0,0.00030033,2]
[407682541,1772668231623,-1200.0,0.00030033,2]
[407682542,1772668231633,-5000.0,0.00030034,120]
[407682543,1772668231643,-1283.15,0.00030123,2]
[407682544,1772668231652,-5000.0,0.00030151,120]
[407682546,1772668231662,-3240.0,0.0003016,120]
[407682548,1772668231671,-202.96,0.00030388,10]
[407682550,1772668231681,-1288.0,0.00030397,2]
[407682551,1772668231690,-1113.8,0.00030398,2]
[407682552,1772668231700,-999.99,0.00030398,2]
[407682554,1772668231709,-29984.42125473,0.00030398,10]
[407682556,1772668231720,-20522.53874527,0.00030398,10]
[407682558,1772668231730,-9999.99,0.00030398,2]
[407682560,1772668231739,-6264.67,0.00030398,2]
[407682562,1772668231749,-150.99,0.00030398,2]
[407682564,1772668231758,-3711.86,0.00030398,2]
[407682566,1772668231767,-150.99,0.00030398,2]
[407682568,1772668231776,-2109.32,0.00030398,2]
[407682569,1772668231790,-9999.99,0.000305,2]
[407682570,1772668231800,-9999.99,0.000305,2]
[407682571,1772668231809,-349.26,0.000305,2]
[407682572,1772668231819,-3636.78,0.000305,20]
[407682573,1772668231831,-4999.99,0.000305,2]
[407682574,1772668231840,-6589.7,0.000305,2]
[407682575,1772668231851,-26242.82,0.000305,2]
[407682576,1772668231861,-299.99,0.000305,12]
[407682577,1772668231871,-3195.44,0.000305,2]
[407682578,1772668231881,-500.0,0.000305,2]
[407682579,1772668231891,-8841.22548634,0.000305,2]
[407682580,1772668231901,-150.95153282,0.00030501,7]
[407682581,1772668231911,-602.0,0.00030558,2]
[407682582,1772668231921,-152.7,0.000306,14]
[407682583,1772668231931,-1634.0,0.00030629,2]
[407682584,1772668231941,-12577.1,0.00031183,2]
[407682585,1772668231950,-200.0,0.00031366,2]
[407682586,1772668231960,-160.0,0.00031416,2]
[407682587,1772668231970,-1452.16,0.00032343,2]
[407682588,1772668231980,-560.0,0.00032367,3]
[407682589,1772668231990,-560.0,0.00032367,3]
[407682590,1772668232000,-500.0,0.00032367,3]
[407682591,1772668232009,-2500.0,0.0003245,2]
[407682592,1772668232019,-1680.0,0.0003247,3]
[407682593,1772668232028,-220.8082,0.00032482,2]
[407682594,1772668232038,-190.78670032,0.00032483,2]
[407682595,1772668232048,-2344.3730087,0.00032548,2]
[407682596,1772668237466,-5903.718551,0.00032548,2]
[407682597,1772668237478,-7796.9084403,0.00032548,2]
[407682598,1772668237488,-8977.6812576,0.00032563,3]
[407682599,1772668237498,-8079.91313184,0.00032573,3]
[407682600,1772668237507,-8841.22548633,0.00032579,2]
[407682602,1772668237516,-500.0,0.00032582,2]
[407682603,1772668237526,-500.0,0.00032582,2]
[407682604,1772668237536,-500.0,0.00032582,2]
[407682605,1772668237546,-500.0,0.00032582,2]
[407682606,1772668237557,-618.19142135,0.00032582,2]
[407682607,1772668237568,-500.0,0.00032582,2]
[407682608,1772668237577,-500.0,0.00032582,2]
[407682609,1772668237586,-300.0,0.00032582,2]
[407682610,1772668237596,-500.0,0.00032582,2]
[407682611,1772668237605,-158.09310964,0.00032582,2]
[407682612,1772668237616,-313.27842277,0.00032582,2]
[407682613,1772668237629,-266.46368858,0.00032582,2]
[407682614,1772668237639,-188.05019053,0.00032582,2]